bitfinex-derivatives/quotes_BTCF0:USTF0_20251115
["timestamp","ask_amount","ask_price","bid_price","bid_amount"]
[1763165368835,0.17957817,95136.0,95130.0,0.00219803]
[1763165369233,0.17857817,95136.0,95132.0,0.00012563]
[1763165370530,0.04935,95133.0,95132.0,0.00012563]
[1763165370738,0.04835,95133.0,95132.0,0.00012563]
[1763165371044,0.15818511,95133.0,95132.0,0.00012563]
[1763165371238,0.04935,95115.0,95114.0,0.3608]
[1763165371534,0.02423,95097.0,95096.0,0.3608]
[1763165371742,0.00015773,95106.0,95104.0,0.1052373]
[1763165372133,0.04935,95105.0,95100.0,0.00219803]
[1763165372334,0.04835,95101.0,95100.0,0.00219803]
[1763165372732,0.169562,95101.0,95100.0,0.00219803]
[1763165373444,0.04935,95096.0,95095.0,0.00473209]
[1763165373640,0.41015,95096.0,95095.0,0.00473209]
[1763165374242,0.04935,95103.0,95096.0,0.1052465]
[1763165374644,0.11716533,95103.0,95102.0,0.04587]
[1763165374842,0.0001169,95104.0,95103.0,0.1511087]
[1763165375141,0.0001169,95104.0,95103.0,0.04587]
[1763165375439,0.0243469,95104.0,95102.0,0.1052389]
[1763165375635,0.0243469,95104.0,95103.0,0.02312]
[1763165375636,0.0001169,95104.0,95103.0,0.02312]
[1763165375836,0.0001169,95104.0,95103.0,0.04587]
[1763165378048,0.0001169,95104.0,95103.0,0.02312]
[1763165378346,0.04935,95102.0,95101.0,0.3608]
[1763165378540,0.0001169,95104.0,95100.0,0.00219803]
[1763165378541,0.04935,95101.0,95100.0,0.00219803]
[1763165378740,0.41015,95101.0,95100.0,0.00219803]
[1763165379039,0.52107738,95101.0,95100.0,0.00219803]
[1763165379244,0.52107738,95101.0,95095.0,0.00473209]
[1763165379245,0.04935,95096.0,95095.0,0.00473209]
[1763165380448,0.16617094,95096.0,95095.0,0.00473209]
[1763165381938,0.02423,95096.0,95095.0,0.10997969]
[1763165382144,0.00219803,95100.0,95099.0,0.1511131]
[1763165383145,0.02642803,95100.0,95095.0,0.00473209]
[1763165383440,0.00219803,95100.0,95099.0,0.04587]
[1763165383642,0.0001169,95104.0,95103.0,0.1511087]
[1763165383839,0.00015773,95106.0,95105.0,0.04587]
[1763165384744,0.00027294,95106.0,95105.0,0.04587]
[1763165386251,0.3608,95129.0,95107.0,0.1052338]
[1763165386450,0.3608,95129.0,95123.0,0.1052155]
[1763165387043,0.04935,95121.0,95120.0,0.00219803]
[1763165387250,0.04935,95121.0,95088.0,0.1052549]
[1763165387251,0.04935,95112.0,95111.0,0.00015773]
[1763165387446,0.41015,95112.0,95111.0,0.00015773]
[1763165387644,0.5241145,95112.0,95111.0,0.00015773]
[1763165388041,0.41015,95112.0,95111.0,0.00015773]
[1763165392152,0.3608,95112.0,95111.0,0.04602773]
[1763165392352,0.3618,95112.0,95111.0,0.04602773]
[1763165392953,0.3608,95112.0,95111.0,0.04602773]
[1763165393749,0.01422,95120.0,95111.0,0.04602773]
[1763165393750,0.06357,95120.0,95119.0,0.105221]
[1763165393955,0.00010029,95121.0,95120.0,0.04806803]
[1763165396561,0.05045029,95121.0,95120.0,0.00219803]
[1763165396756,0.04935,95112.0,95111.0,0.00015773]
[1763165400961,0.04935,95112.0,95111.0,0.02193773]
[1763165401260,0.00010029,95121.0,95120.0,0.04314]
[1763165401463,0.00010029,95121.0,95120.0,0.15055793]
[1763165401661,0.00015773,95130.0,95129.0,0.1483499]
[1763165401860,0.00015773,95130.0,95117.0,0.3608]
[1763165401861,0.04324,95126.0,95125.0,0.39792438]
[1763165402063,0.04324,95126.0,95125.0,0.3608]
[1763165402255,0.00015773,95130.0,95129.0,0.1483499]
[1763165402959,0.3608,95142.0,95141.0,0.1483367]
[1763165403159,0.3608,95151.0,95141.0,0.105196]
[1763165403361,0.02115,95145.0,95144.0,0.1051931]
[1763165404063,0.04324,95141.0,95135.0,0.3608]
[1763165404365,0.04324,95124.0,95123.0,0.14234038]
[1763165404552,0.04324,95124.0,95121.0,0.1052188]
[1763165404753,0.1116934,95150.0,95121.0,0.1052188]
[1763165404754,0.37384,95160.0,95149.0,0.1051868]
[1763165405054,0.37384,95160.0,95140.0,0.00219803]
[1763165405055,0.40404,95151.0,95140.0,0.00219803]
[1763165405365,0.02115,95142.0,95141.0,0.1269766]
[1763165405566,0.3608,95151.0,95144.0,0.105193]
[1763165405867,0.3608,95151.0,95148.0,0.1051881]
[1763165406068,0.3618,95151.0,95150.0,0.02178]
[1763165406268,0.3618,95151.0,95150.0,0.02397803]
[1763165406477,0.3618,95151.0,95150.0,0.04533803]
[1763165406656,0.001,95151.0,95150.0,0.05598866]
[1763165407166,0.00015765,95154.0,95153.0,0.04314]
[1763165407470,0.3608,95170.0,95169.0,0.1483057]
[1763165407673,0.395,95209.0,95170.0,0.00219803]
[1763165407674,0.3608,95190.0,95170.0,0.00219803]
[1763165408169,0.3608,95190.0,95177.0,0.3608]
[1763165408378,0.04324,95197.0,95196.0,0.1051354]
[1763165408563,0.04324,95197.0,95185.0,0.3608]
[1763165408761,0.04324,95197.0,95194.0,0.1051375]
[1763165409059,0.00015765,95206.0,95200.0,0.1051305]
[1763165409060,0.04339765,95206.0,95200.0,0.1051305]
[1763165409262,0.04339765,95206.0,95200.0,0.10732853]
[1763165409566,0.00015765,95206.0,95205.0,0.04314]
[1763165410360,0.3608,95230.0,95218.0,0.1051105]
[1763165410557,0.04452,95221.0,95220.0,0.00219803]
[1763165410961,0.3608,95230.0,95220.0,0.02444803]
[1763165411268,0.3608,95230.0,95225.0,0.1051038]
[1763165411563,0.01304,95235.0,95225.0,0.1051038]
[1763165411564,0.01319757,95235.0,95225.0,0.1051038]
[1763165411771,0.01319757,95235.0,95221.0,0.3608]
[1763165412069,0.01319757,95235.0,95220.0,0.10730683]
[1763165412965,0.3608,95230.0,95220.0,0.00219803]
[1763165413980,0.0576,95216.0,95215.0,0.00015757]
[1763165414473,0.04452,95204.0,95192.0,0.3608]
[1763165414667,0.04452,95193.0,95192.0,0.37136522]
[1763165414858,0.04452,95193.0,95190.0,0.00219803]
[1763165414859,0.04452,95191.0,95190.0,0.00219803]
[1763165415173,0.02297,95180.0,95179.0,0.3608]
[1763165415560,0.04452,95180.0,95179.0,0.3608]
[1763165415763,0.00015757,95189.0,95180.0,0.00219803]
[1763165416159,0.04452,95181.0,95180.0,0.00219803]
[1763165416865,0.04452,95171.0,95170.0,0.00015757]
[1763165417061,0.02297,95171.0,95170.0,0.0023556]
[1763165417266,0.11998539,95181.0,95180.0,0.04517]
[1763165417471,0.02297,95181.0,95180.0,0.00219803]
[1763165417660,0.02297,95181.0,95180.0,0.00319803]
[1763165417863,0.00015757,95189.0,95185.0,0.1051476]
[1763165418280,0.00015757,95189.0,95180.0,0.10735113]
[1763165418859,0.00015757,95189.0,95180.0,0.00219803]
[1763165419066,0.00015757,95189.0,95186.0,0.1051463]
[1763165419970,0.00015757,95189.0,95180.0,0.00219803]
[1763165419971,0.04452,95187.0,95180.0,0.00219803]
[1763165420274,0.02297,95181.0,95180.0,0.00219803]
[1763165420470,0.04452,95181.0,95180.0,0.00219803]
[1763165423873,0.04452,95171.0,95170.0,0.01088264]
[1763165424073,0.04452,95171.0,95170.0,0.0023556]
[1763165424472,0.02297,95171.0,95170.0,0.0246056]
[1763165424776,0.3608,95175.0,95170.0,0.0023556]
[1763165424970,0.01308,95183.0,95170.0,0.0023556]
[1763165425172,0.1211519,95182.0,95170.0,0.0023556]
[1763165425475,0.01308,95183.0,95171.0,0.1051633]
[1763165425671,0.01308,95183.0,95170.0,0.0023556]
[1763165425672,0.04452,95171.0,95170.0,0.01268885]
[1763165425878,0.04452,95171.0,95170.0,0.0023556]
[1763165426068,0.04452,95171.0,95170.0,0.00015757]
[1763165426378,0.04452,95171.0,95146.0,0.3608]
[1763165426379,0.04452,95147.0,95146.0,0.3608]
[1763165426572,0.01308,95168.0,95150.0,0.00219803]
[1763165426772,0.01308,95168.0,95155.0,0.3608]
[1763165426974,0.01308,95168.0,95160.0,0.00219803]
[1763165427172,0.3608,95171.0,95165.0,0.1051696]
[1763165427375,0.00015765,95178.0,95173.0,0.1051604]
[1763165427575,0.00015765,95178.0,95177.0,0.02225]
[1763165427770,0.04641765,95178.0,95164.0,0.1051707]
[1763165427976,0.04641765,95178.0,95170.0,0.00219803]
[1763165428171,0.00015765,95178.0,95177.0,0.04494]
[1763165428485,0.03728211,95214.0,95170.0,0.00219803]
[1763165428486,0.03614,95216.0,95215.0,0.1051149]
[1763165428676,0.03614,95216.0,95215.0,0.4659149]
[1763165428677,0.01308,95216.0,95215.0,0.4659149]
[1763165428868,0.01308,95216.0,95210.0,0.00219803]
[1763165428869,0.01308,95216.0,95211.0,0.1051188]
[1763165429072,0.02306,95212.0,95211.0,0.1051188]
[1763165429476,0.04626,95212.0,95211.0,0.1051188]
[1763165429783,0.01308,95216.0,95215.0,0.1051149]
[1763165429984,0.01308,95216.0,95215.0,0.4659149]
[1763165430185,0.01308,95216.0,95210.0,0.36299803]
[1763165431486,0.01308,95216.0,95214.0,0.1051151]
[1763165431681,0.01308,95216.0,95213.0,0.1051163]
[1763165431887,0.01308,95216.0,95210.0,0.36299803]
[1763165431888,0.04626,95211.0,95210.0,0.36299803]
[1763165432282,0.00015754,95221.0,95220.0,0.1051094]
[1763165432483,0.00015754,95221.0,95220.0,0.10730743]
[1763165434182,0.00015754,95221.0,95220.0,0.00219803]
[1763165434587,0.02321754,95221.0,95220.0,0.00219803]
[1763165435283,0.04641754,95221.0,95220.0,0.00219803]
[1763165435490,0.04641754,95221.0,95220.0,0.00319803]
[1763165436291,0.04641754,95221.0,95220.0,0.11766723]
[1763165436498,0.00015754,95221.0,95220.0,0.11766723]
[1763165437484,0.3608,95239.0,95231.0,0.1050973]
[1763165437684,0.3608,95239.0,95235.0,0.1050928]
[1763165437987,0.3608,95249.0,95235.0,0.1050928]
[1763165438490,0.3608,95262.0,95235.0,0.1050928]
[1763165438491,0.0041171,95236.0,95235.0,0.1050928]
[1763165440789,0.0041171,95236.0,95235.0,0.4658928]
[1763165440991,0.0503771,95236.0,95235.0,0.3608]
[1763165441182,0.0139,95235.0,95230.0,0.00219803]
[1763165441384,0.0139,95235.0,95233.0,0.1050949]
[1763165441580,0.04626,95231.0,95230.0,0.00219803]
[1763165441779,0.04626,95231.0,95226.0,0.00015754]
[1763165441988,0.04626,95227.0,95226.0,0.00015754]
[1763165443794,0.04626,95227.0,95216.0,0.3608]
[1763165443795,0.04626,95217.0,95216.0,0.3608]
[1763165444089,0.15888213,95217.0,95216.0,0.37156177]
[1763165444691,0.04626,95217.0,95216.0,0.37156177]
[1763165444893,0.04626,95217.0,95216.0,0.01076177]
[1763165445092,0.04626,95215.0,95214.0,0.1051159]
[1763165445487,0.04526,95215.0,95214.0,0.0103973]
[1763165445695,0.04626,95215.0,95210.0,0.00219803]
[1763165445892,0.02306,95214.0,95213.0,0.105117]
[1763165446094,0.02206,95214.0,95213.0,0.105117]
[1763165446297,0.04626,95211.0,95210.0,0.00219803]
[1763165446890,0.3747,95220.0,95207.0,0.00015754]
[1763165446891,0.04626,95208.0,95207.0,0.00015754]
[1763165447389,0.15615751,95208.0,95207.0,0.00015754]
[1763165447584,0.04626,95196.0,95195.0,0.00013218]
[1763165448186,0.04626,95196.0,95195.0,0.01040516]
[1763165448399,0.04626,95196.0,95195.0,0.00013218]
[1763165448795,0.0139,95200.0,95195.0,0.01087301]
[1763165448999,0.0139,95200.0,95199.0,0.1051326]
[1763165449395,0.04626,95211.0,95210.0,0.1051204]
[1763165449595,0.04626,95211.0,95210.0,0.10731843]
[1763165450689,0.04626,95211.0,95210.0,0.00219803]
[1763165451200,0.04626,95196.0,95195.0,0.11601001]
[1763165452100,0.0139,95200.0,95199.0,0.1051326]
[1763165452298,0.3608,95212.0,95209.0,0.1051213]
[1763165452299,0.04626,95210.0,95209.0,0.1051213]
[1763165452604,0.04626,95202.0,95201.0,0.3608]
[1763165457596,0.04559,95201.0,95200.0,0.00219803]
[1763165461197,0.04559,95201.0,95195.0,0.01087301]
[1763165461198,0.04559,95196.0,95195.0,2.18e-06]
[1763165461405,0.04559,95187.0,95176.0,0.1051576]
[1763165461700,0.04559,95187.0,95174.0,0.3608]
[1763165462001,0.15590593,95187.0,95174.0,0.4659596]
[1763165462203,0.15590593,95187.0,95184.0,0.01079496]
[1763165462389,0.15590593,95187.0,95186.0,0.10530444]
[1763165462592,0.15590593,95187.0,95186.0,0.00015754]
[1763165463214,0.15690593,95187.0,95186.0,0.00015754]
[1763165463806,0.15590593,95187.0,95186.0,0.00015754]
[1763165464098,0.04559,95175.0,95163.0,0.1051713]
[1763165464401,0.04559,95175.0,95162.0,0.47489668]
[1763165464402,0.04566852,95175.0,95174.0,0.37127985]
[1763165465202,0.04566852,95175.0,95174.0,0.47644005]
[1763165466705,7.852e-05,95175.0,95174.0,0.47644005]
[1763165467201,0.04566852,95175.0,95174.0,0.47644005]
[1763165469107,0.02317852,95175.0,95174.0,0.47644005]
[1763165469308,7.852e-05,95175.0,95174.0,0.47644005]
[1763165470507,0.04633852,95175.0,95174.0,0.47644005]
[1763165471805,0.04633852,95175.0,95174.0,0.37127985]
[1763165472405,0.04633852,95175.0,95174.0,0.47644005]
[1763165475011,0.04633852,95175.0,95174.0,0.37127985]
[1763165477815,0.0442,95171.0,95170.0,0.00219803]
[1763165478115,0.0442,95166.0,95165.0,0.00015754]
[1763165478508,0.15581215,95166.0,95165.0,0.00015754]
[1763165478913,0.0442,95166.0,95165.0,0.00015754]
[1763165479614,0.001,95166.0,95165.0,0.00015754]
[1763165480116,0.001,95166.0,95165.0,0.01044283]
[1763165480314,0.0133,95172.0,95166.0,0.105169]
[1763165480514,0.0575,95172.0,95171.0,0.4659635]
[1763165481315,0.00023606,95175.0,95174.0,0.1051602]
[1763165483911,0.37363,95199.0,95171.0,0.4659635]
[1763165484218,0.37363,95199.0,95185.0,0.105148]
[1763165484219,0.3608,95197.0,95185.0,0.105148]
[1763165484421,0.01283,95199.0,95185.0,0.105148]
[1763165485020,0.0442,95183.0,95182.0,0.3608]
[1763165485610,0.01290381,95186.0,95183.0,0.1051502]
[1763165486520,0.01290381,95186.0,95182.0,0.3608]
[1763165486521,0.0442,95183.0,95182.0,0.3608]
[1763165486926,0.01290381,95186.0,95180.0,0.00219803]
[1763165486927,0.0442,95181.0,95180.0,0.00219803]
[1763165487113,0.0442,95166.0,95162.0,0.05570703]
[1763165487417,0.0442,95166.0,95165.0,0.00015754]
[1763165487623,0.1621511,95166.0,95165.0,0.01058599]
[1763165487823,0.1621511,95166.0,95160.0,0.36299803]
[1763165487824,0.04299,95161.0,95160.0,0.36299803]
[1763165488020,0.04299,95161.0,95160.0,0.37361988]
[1763165489111,0.04399,95161.0,95160.0,0.37361988]
[1763165490025,0.04399,95161.0,95160.0,0.01281988]
[1763165490820,0.04299,95161.0,95160.0,0.01281988]
[1763165491631,0.04399,95161.0,95160.0,0.01281988]
[1763165492125,0.001,95161.0,95160.0,0.01281988]
[1763165492331,0.02291,95161.0,95160.0,0.37361988]
[1763165492525,0.04399,95161.0,95160.0,0.37361988]
[1763165493722,0.04299,95161.0,95160.0,0.37361988]
[1763165495129,3.81e-06,95166.0,95165.0,0.1051701]
[1763165495431,0.03728211,95193.0,95165.0,0.1051701]
[1763165495432,0.03728211,95237.0,95194.0,0.1051373]
[1763165495625,0.01283,95244.0,95217.0,0.1051125]
[1763165495933,0.04299,95231.0,95230.0,0.1050973]
[1763165496232,0.00015753,95240.0,95230.0,0.10729533]
[1763165496421,0.00015753,95240.0,95231.0,0.39794545]
[1763165496620,0.00015753,95240.0,95234.0,0.1050939]
[1763165496830,0.00015753,95240.0,95235.0,0.03706033]
[1763165497031,0.00015753,95240.0,95239.0,0.1050884]
[1763165497227,0.00015753,95240.0,95239.0,0.11573063]
[1763165497437,0.00015753,95240.0,95239.0,0.47653063]
[1763165497624,0.01283,95256.0,95255.0,0.1050708]
[1763165498429,0.01283,95256.0,95250.0,0.00219803]
[1763165498430,0.01283,95256.0,95250.0,0.10727383]
[1763165498630,0.01383,95256.0,95250.0,0.00219803]
[1763165498830,0.04299,95251.0,95250.0,0.00219803]
[1763165499625,0.04299,95244.0,95243.0,0.00015753]
[1763165499824,0.40379,95244.0,95243.0,0.00015753]
[1763165500128,0.51937883,95244.0,95243.0,0.00015753]
[1763165500934,0.52037883,95244.0,95243.0,0.00015753]
[1763165504832,0.15957883,95244.0,95243.0,0.00015753]
[1763165507542,0.04299,95241.0,95240.0,0.00219803]
[1763165508450,0.001,95244.0,95240.0,0.00219803]
[1763165508451,0.001,95244.0,95241.0,0.1050862]
[1763165508636,0.001,95244.0,95243.0,0.3608]
[1763165509144,0.01283,95256.0,95243.0,0.3608]
[1763165509340,0.01283,95256.0,95250.0,0.10727373]
[1763165509341,0.02191,95251.0,95250.0,0.10727373]
[1763165509544,0.04299,95251.0,95250.0,0.10727373]
[1763165510529,0.04299,95251.0,95250.0,0.00219803]
[1763165510741,0.04299,95251.0,95236.0,0.01076661]
[1763165510742,0.04299,95237.0,95236.0,0.11585781]
[1763165510939,0.04299,95237.0,95236.0,0.01076661]
[1763165511244,0.04299,95237.0,95234.0,0.3608]
[1763165511245,0.04299,95235.0,95234.0,0.3608]
[1763165511849,0.01283,95238.0,95235.0,0.1050928]
[1763165512445,0.04299,95235.0,95234.0,0.01072065]
[1763165512640,0.04299,95235.0,95230.0,0.00219803]
[1763165512641,0.04299,95232.0,95230.0,0.00219803]
[1763165512839,0.3608,95278.0,95269.0,0.1050553]
[1763165513040,0.00026237,95286.0,95275.0,0.1050487]
[1763165513335,0.00026237,95286.0,95275.0,0.4658487]
[1763165513541,7e-08,95276.0,95275.0,0.4658487]
[1763165513738,0.00026237,95286.0,95285.0,0.1050377]
[1763165513943,0.00026237,95286.0,95285.0,0.4658377]
[1763165514144,7e-08,95286.0,95285.0,0.4658377]
[1763165515846,7e-08,95286.0,95285.0,0.3608]
[1763165516044,0.04299007,95286.0,95285.0,0.3608]
[1763165517350,0.04299007,95286.0,95276.0,0.00015745]
[1763165517351,0.04299,95277.0,95276.0,0.00015745]
[1763165517547,0.40379,95277.0,95276.0,0.00015745]
[1763165517748,0.52056674,95277.0,95276.0,0.00015745]
[1763165517943,0.15976674,95277.0,95276.0,0.00015745]
[1763165518649,0.04299,95277.0,95276.0,0.00015745]
[1763165519646,7e-08,95286.0,95280.0,0.00219803]
[1763165519844,7e-08,95286.0,95283.0,0.1050399]
[1763165520448,7e-08,95286.0,95285.0,0.1050377]
[1763165520752,0.005,95316.0,95315.0,0.1050046]
[1763165521141,0.3608,95340.0,95338.0,0.04403]
[1763165521345,0.05540881,95384.0,95338.0,0.04403]
[1763165521346,0.3608,95375.0,95365.0,0.04403]
[1763165521642,0.01301,95399.0,95360.0,0.00219803]
[1763165521839,0.3608,95373.0,95360.0,0.00219803]
[1763165522041,0.01301,95380.0,95357.0,0.00015727]
[1763165522042,0.0572,95361.0,95357.0,0.00015727]
[1763165522249,0.40499,95358.0,95357.0,0.00015727]
[1763165522450,0.40499,95358.0,95325.0,0.37462]
[1763165522751,0.0222,95326.0,95320.0,0.00219803]
[1763165522940,0.0222,95321.0,95305.0,0.3608]
[1763165523142,0.00026226,95320.0,95310.0,0.00219803]
[1763165523343,0.04419,95311.0,95310.0,0.00219803]
[1763165523546,0.11240732,95320.0,95310.0,0.00219803]
[1763165523743,0.00015736,95320.0,95319.0,0.04403]
[1763165524155,0.00015736,95320.0,95306.0,0.3608]
[1763165524348,0.00041962,95320.0,95312.0,0.1050079]
[1763165524749,0.00015736,95320.0,95318.0,0.3608]
[1763165525259,0.00215736,95320.0,95318.0,0.3608]
[1763165525649,0.04419,95319.0,95318.0,0.3608]
[1763165526155,0.04419,95319.0,95306.0,0.3608]
[1763165526349,0.04419,95307.0,95306.0,0.3608]
[1763165526661,0.37622962,95320.0,95310.0,0.00219803]
[1763165527055,0.10957028,95319.0,95310.0,0.00219803]
[1763165527451,0.11157028,95319.0,95315.0,0.3608]
[1763165527751,0.002,95319.0,95315.0,0.4658036]
[1763165528155,0.00015736,95320.0,95315.0,0.4658036]
[1763165528359,0.00015736,95320.0,95310.0,0.00219803]
[1763165528360,0.001,95319.0,95310.0,0.00219803]
[1763165528662,0.001,95319.0,95318.0,0.04403]
[1763165529052,0.00015736,95320.0,95319.0,0.1490302]
[1763165529448,0.3608,95342.0,95320.0,0.00219803]
[1763165529658,0.00026226,95330.0,95329.0,0.04403]
[1763165529860,0.00026226,95330.0,95329.0,0.40483]
[1763165530062,0.02199,95320.0,95310.0,0.3608]
[1763165530262,0.02225226,95320.0,95310.0,0.36299803]
[1763165530465,0.12259124,95319.0,95310.0,0.36299803]
[1763165530657,0.0431,95311.0,95310.0,0.36299803]
[1763165530853,0.4039,95311.0,95310.0,0.00219803]
[1763165531050,0.0431,95306.0,95305.0,0.00015736]
[1763165531660,0.15822492,95306.0,95305.0,0.00015736]
[1763165531857,0.0431,95306.0,95305.0,0.00015736]
[1763165532171,0.0441,95306.0,95305.0,0.00015736]
[1763165532663,0.001,95306.0,95305.0,0.00015736]
[1763165534755,0.15882835,95306.0,95305.0,0.00015736]
[1763165535162,0.0431,95292.0,95291.0,0.45220408]
[1763165537362,0.1593213,95292.0,95291.0,0.45220408]
[1763165537763,0.1593213,95292.0,95290.0,0.00219803]
[1763165537764,0.0213,95291.0,95290.0,0.00219803]
[1763165538365,0.0431,95291.0,95290.0,0.00219803]
[1763165538566,0.0431,95291.0,95282.0,0.00015736]
[1763165538765,0.0431,95283.0,95282.0,0.00015736]
[1763165539559,0.0431,95278.0,95277.0,0.0001096]
[1763165539871,0.0431,95268.0,95267.0,0.3608]
[1763165540460,0.07478329,95331.0,95267.0,0.3608]
[1763165540461,0.3608,95308.0,95270.0,0.10725153]
[1763165540773,0.00026226,95280.0,95279.0,0.1264243]
[1763165540964,0.00049318,95290.0,95289.0,0.1050333]
[1763165541162,0.00049318,95290.0,95284.0,0.105038]
[1763165541664,0.00049318,95290.0,95280.0,0.00219803]
[1763165541665,0.00023092,95290.0,95289.0,0.02138]
[1763165541870,0.00049318,95290.0,95289.0,0.02138]
[1763165542074,0.00023092,95290.0,95287.0,0.1050354]
[1763165543163,0.0431,95288.0,95286.0,0.3608]
[1763165543381,0.0431,95287.0,95286.0,0.3608]
[1763165543765,0.00123092,95290.0,95286.0,0.3608]
[1763165543766,0.00123092,95290.0,95287.0,0.1050355]
[1763165544667,0.001,95288.0,95287.0,0.1050355]
[1763165545977,0.0431,95287.0,95286.0,0.3608]
[1763165547574,0.0213,95287.0,95286.0,0.3608]
[1763165547765,0.0223,95287.0,95286.0,0.3608]
[1763165547966,0.3608,95318.0,95317.0,0.04466]
[1763165548164,0.3608,95318.0,95307.0,0.1050134]
[1763165548165,0.3608,95339.0,95330.0,0.0223]
[1763165548364,0.00026226,95340.0,95339.0,0.1272782]
[1763165548574,0.00026226,95340.0,95336.0,0.1049815]
[1763165548575,0.00026226,95350.0,95348.0,0.1049683]
[1763165548772,0.0436,95358.0,95357.0,0.1049576]
[1763165548980,0.3608,95373.0,95360.0,0.00219803]
[1763165549176,0.00015736,95367.0,95364.0,0.1049499]
[1763165549368,0.00015736,95367.0,95366.0,0.3608]
[1763165549671,0.11469624,95367.0,95366.0,0.3608]
[1763165549871,0.02236,95349.0,95347.0,0.3606951]
[1763165550175,0.02236,95346.0,95345.0,0.3608]
[1763165551073,0.003,95349.0,95348.0,0.0223]
[1763165551274,0.003,95349.0,95346.0,0.1049705]
[1763165551578,0.12302793,95349.0,95346.0,0.1049705]
[1763165552380,0.12002793,95349.0,95346.0,0.1049705]
[1763165552769,0.11604319,95363.0,95346.0,0.1049705]
[1763165553070,0.02236,95351.0,95350.0,0.00219803]
[1763165553473,0.13501628,95351.0,95350.0,0.00219803]
[1763165554193,0.01373,95346.0,95336.0,0.00015736]
[1763165554474,0.11265628,95351.0,95340.0,0.00219803]
[1763165554667,0.0436,95337.0,95336.0,0.00015736]
[1763165555081,0.0436,95337.0,95325.0,0.3608]
[1763165555082,0.0436,95327.0,95325.0,0.3608]
[1763165555269,0.0436,95313.0,95312.0,0.3608]
[1763165555672,0.16471616,95313.0,95312.0,0.3608]
[1763165556070,0.0436,95311.0,95310.0,0.00011235]
[1763165556485,0.15635157,95311.0,95310.0,0.00231038]
[1763165558579,0.15735157,95311.0,95310.0,0.00231038]
[1763165558989,0.15735157,95311.0,95310.0,0.00011235]
[1763165559182,0.15735157,95311.0,95310.0,2.35e-06]
[1763165559689,0.15735157,95311.0,95310.0,0.00220038]
[1763165559887,0.11375157,95311.0,95310.0,2.35e-06]
[1763165560285,0.47466375,95311.0,95310.0,2.35e-06]
[1763165560683,0.47466375,95311.0,95303.0,0.00015736]
[1763165560882,0.0436,95304.0,95303.0,0.00015736]
[1763165561089,0.0436,95290.0,95289.0,0.3608]
[1763165561690,0.0436,95290.0,95277.0,0.3608]
[1763165561691,0.15998588,95290.0,95277.0,0.3608]
[1763165561994,0.02236,95281.0,95280.0,0.00219803]
[1763165562194,0.0436,95281.0,95280.0,0.00219803]
[1763165563591,0.0436,95281.0,95268.0,0.3608]
[1763165563592,0.0436,95269.0,95268.0,0.3608]
[1763165563893,0.16495304,95269.0,95268.0,0.3608]
[1763165565303,0.0436,95256.0,95255.0,0.36552414]
[1763165566406,0.00015745,95265.0,95261.0,0.1050637]
[1763165566799,0.12125417,95264.0,95257.0,0.1050676]
[1763165567198,0.0436,95256.0,95255.0,0.36552414]
[1763165567805,0.00015745,95265.0,95264.0,0.04466]
[1763165568300,0.00015745,95265.0,95260.0,0.00219803]
[1763165568301,0.02236,95261.0,95260.0,0.00219803]
[1763165568501,0.0436,95256.0,95255.0,0.36552414]
[1763165568898,0.02236,95256.0,95255.0,0.36552414]
[1763165569100,0.00015745,95265.0,95256.0,0.1050697]
[1763165569302,0.00115745,95265.0,95256.0,0.1050697]
[1763165569500,0.11793772,95264.0,95255.0,0.36552414]
[1763165570012,0.02336,95256.0,95255.0,0.36552414]
[1763165570202,0.0446,95256.0,95255.0,0.36552414]
[1763165570510,0.0446,95256.0,95255.0,0.00472414]
[1763165570511,0.15500594,95256.0,95255.0,0.00472414]
[1763165571612,0.15400594,95256.0,95255.0,0.00472414]
[1763165572514,0.15500594,95256.0,95255.0,0.36552414]
[1763165573513,0.001,95256.0,95255.0,0.51525494]
[1763165574411,0.001,95256.0,95255.0,0.36552414]
[1763165574412,0.1627526,95256.0,95255.0,0.36552414]
[1763165574606,0.1617526,95256.0,95255.0,0.36552414]
[1763165574811,0.1627526,95256.0,95255.0,0.00472414]
[1763165575409,0.001,95256.0,95255.0,0.04938414]
[1763165575717,0.001,95256.0,95255.0,0.41018414]
[1763165576214,0.0436,95261.0,95260.0,0.1050635]
[1763165576411,0.0436,95261.0,95260.0,0.10726153]
[1763165576615,0.14077308,95261.0,95260.0,0.12956153]
[1763165577017,0.16201308,95261.0,95260.0,0.00219803]
[1763165577516,0.0436,95256.0,95255.0,0.36552414]
[1763165577718,0.0446,95256.0,95255.0,0.36552414]
[1763165577916,0.16476019,95256.0,95255.0,0.36552414]
[1763165578311,0.16476019,95256.0,95255.0,0.00472414]
[1763165578515,0.16376019,95256.0,95255.0,0.00472414]
[1763165580515,0.16576019,95256.0,95255.0,0.00472414]
[1763165581314,0.16476019,95256.0,95255.0,0.00472414]
[1763165581816,0.0458,95256.0,95255.0,0.36552414]
[1763165582019,0.15726324,95256.0,95255.0,0.00472414]
[1763165582222,0.15826324,95256.0,95255.0,0.00472414]
[1763165582423,0.17128324,95256.0,95255.0,0.00472414]
[1763165583723,0.001,95256.0,95255.0,0.04900414]
[1763165583923,0.05882,95256.0,95255.0,0.00472414]
[1763165584117,0.17660064,95256.0,95255.0,0.00472414]
[1763165584620,0.17660064,95256.0,95246.0,0.00026248]
[1763165584621,0.0448,95247.0,95246.0,0.00026248]
[1763165585023,0.0448,95247.0,95246.0,0.1493607]
[1763165585024,3e-08,95247.0,95246.0,0.1493607]
[1763165585223,0.002,95256.0,95255.0,0.04428]
[1763165585415,0.0448,95251.0,95250.0,0.00219803]
[1763165585612,0.1199597,95255.0,95251.0,0.1050752]
[1763165585837,0.002,95256.0,95255.0,0.1493508]
[1763165586216,0.00015745,95265.0,95264.0,0.1493408]
[1763165586522,0.05540881,95306.0,95264.0,0.1493408]
[1763165586523,0.36106237,95286.0,95285.0,0.04428]
[1763165586914,0.12027575,95286.0,95285.0,0.04428]
[1763165587136,0.00026237,95286.0,95285.0,0.40508]
[1763165587330,0.3608,95306.0,95295.0,0.04428]
[1763165587631,0.3608,95306.0,95305.0,0.04428]
[1763165588122,0.00015745,95310.0,95305.0,0.04428]
[1763165588818,0.001,95306.0,95305.0,0.04428]
[1763165589025,0.001,95306.0,95305.0,0.149295]
[1763165589214,0.001,95306.0,95305.0,0.05494346]
[1763165589418,0.1608104,95306.0,95301.0,0.3608]
[1763165589620,0.0448,95302.0,95301.0,0.3608]